Cogmind - Beta 14 @@@ ROGUE MODE // 2025.01.14 @ 05:07:05 Player: Auto Result: Destroyed by G-47 Trooper with Particle Gun Performance ------------- Evolutions (0) 0 Regions Visited (1) 200 Robots Destroyed (16) 80 Value Destroyed (427) 427 Prototype IDs (0) 0 Alien Tech Used (0) 0 Bonus (0) 0 TOTAL SCORE: 707 Bonus ------- None Cogmind --------- Core Integrity 0/250 Matter 300/300 Energy 205/250 System Corruption 0% Temperature Cool (9) Movement Core (250) Ox4 Location -10/Materials Parts ------- > --- POWER (1) -------- Ion Engine > --- PROPULSION (2) --- (None) > --- UTILITY (2) ------ Medium Storage Unit Salvage Targeting Computer > --- WEAPON (2) ------- (None) > --- INVENTORY (10) --- Ion Engine Aluminum Leg Aluminum Leg Hover Unit Flight Unit Hacking Suite EMP Blaster Datajack Peak State ------------ > --- POWER ------------ Ion Engine > --- PROPULSION ------- Aluminum Leg Aluminum Leg > --- UTILITY ---------- Small Storage Unit Hacking Suite > --- WEAPON ----------- Particle Gun Light Assault Rifle > --- INVENTORY -------- Ion Engine Light Ion Engine Light Treads Light Treads Salvage Targeting Computer Particle Gun EMP Blaster Datajack [Rating: 11] Favorites ----------- Power Ion Engine Engine Ion Engine Propulsion Aluminum Leg Treads Light Treads Leg Aluminum Leg Utility Hacking Suite Storage Medium Storage Unit Processor Salvage Targeting Computer Hackware Hacking Suite Weapon Light Assault Rifle Energy Gun Particle Gun Ballistic Gun Light Assault Rifle Build | -11 -10 ------- Run | Yrd Mat Slots Evolved . | . . Power . | . . Propulsion . | . . Utility . | . . Weapon . | . . Parts Attached 24 | 6 18 Power 6 | 1 5 Engine 6 | 1 5 Core . | . . Reactor . | . . Propulsion 10 | 2 8 Treads 3 | . 3 Leg 7 | 2 5 Wheel . | . . Hover . | . . Flight . | . . Utility 4 | 1 3 Device . | . . Storage 2 | 1 1 Processor 1 | . 1 Hackware 1 | . 1 Protection . | . . Artifact . | . . Weapon 4 | 2 2 Energy Gun 3 | 1 2 Energy Cannon . | . . Ballistic Gun 1 | 1 . Ballistic Cannon . | . . Launcher . | . . Special Weapon . | . . Impact Weapon . | . . Slashing Weapon . | . . Piercing Weapon . | . . Special Melee Weapon . | . . Unidentified Prototypes . | . . Parts Lost 7 | . 7 Power 1 | . 1 Propulsion 3 | . 3 Utility . | . . Weapon 3 | . 3 Highest Loss Streak 6 | . 6 To Critical Strikes . | . . Average Slot Usage (%) 96 | . 96 Engine 13 | . 13 Treads 9 | . 9 Leg 18 | . 18 Storage 14 | . 14 Processor 3 | . 3 Hackware 9 | . 9 Energy Gun 14 | . 14 Ballistic Gun 12 | . 12 Peak Build Rating 11 | 6 11 Average Rating 9 | 4 9 On Entrance 3 | . 6 Naked Turns . | . . Heaviest Build 21 | 13 21 Greatest Support 40 | 20 40 Greatest Overweight (x) 4 | 1 4 Average Overweight (x) . | . . Largest Inventory Capacity 10 | 8 10 Average Capacity 8 | 6 9 Most Carried 10 | 6 10 Average Carried 8 | 4 8 Final Capacity 10 | 8 10 Final Carried 8 | 6 8 Class Distribution -------------------- 91% | Mutant 8% | Scavenger-Mutant Dominant Class ---------------- Mutant | -10/Materials Resources | -11 -10 ----------- Run | Yrd Mat Matter Collected 444 | 265 179 Remotely . | . . Salvage Created 693 | 99 594 Parts 28 | . 28 Haulers Intercepted . | . . Recyclers Shooed . | . . Parts Field Recycled . | . . Retrieved Matter . | . . Parts Self-Destructed . | . . Prevented . | . . Kills | -11 -10 ------- Run | Yrd Mat Combat Hostiles Destroyed 10 | . 10 Guns 10 | . 10 Classes Destroyed 5 | 1 4 Worker 1 | . 1 Recycler 2 | 1 1 Operator 2 | . 2 Watcher 1 | . 1 Grunt 10 | . 10 Best Kill Streak 3 | 1 3 Combat Bots Only 3 | . 3 Max Kills in Single Turn 1 | 1 1 Gunslinging . | . . Exploded . | . . Melee . | . . Uniques/NPCs Destroyed . | . . Combat | -11 -10 -------- Run | Yrd Mat Hostile Shots Fired 124 | . 124 Missed 22 | . 22 Damage Taken 1334 | . 1334 Core 255 | . 255 Absorbed by Shields . | . . Core Remaining (%) 100 | 100 . Volleys Fired 64 | 5 59 Largest 2 | 2 2 Hottest 130 | 70 130 Shots Fired 126 | 10 116 Gun 126 | 10 116 Cannon . | . . Launcher . | . . Special . | . . Kinetic 53 | 5 48 Thermal 73 | 5 68 Explosive . | . . Electromagnetic . | . . Robot Hit Streak 11 | 2 11 Robot Miss Streak 4 | 1 4 Penetration Max . | . . Secondary Targets . | . . Shots Hit Robots 86 | 6 80 Core Hits 37 | 2 35 Critical Kills . | . . Critical Parts Destroyed 1 | . 1 Critical Strikes 3 | . 3 Burn 2 | . 2 Destroy 1 | . 1 Melee Attacks . | . . Impact . | . . Slashing . | . . Piercing . | . . Sneak Attacks . | . . Combat Hostiles . | . . Follow-up Attacks . | . . Damage Inflicted 1138 | 53 1085 Guns 1080 | 53 1027 Cannons . | . . Explosions . | . . Melee . | . . Ramming 58 | . 58 Kinetic 239 | 27 212 Thermal 841 | 26 815 Explosive . | . . Electromagnetic . | . . Impact . | . . Slashing . | . . Piercing . | . . Highest Corruption . | . . Average Corruption . | . . Corruption Purged . | . . Corruption Blocked . | . . Overload Shots . | . . Overflow Damage . | . . Projectiles . | . . Explosions . | . . Melee . | . . Knockbacks 2 | . 2 Impact 2 | . 2 Kinetic . | . . Secondary . | . . Self-Inflicted Damage . | . . Shots . | . . Rammed 2 | . 2 Targets Rammed 29 | . 29 Kicked 27 | . 27 Crushed . | . . Highest Temperature 391 | 90 391 Average Temperature 128 | 45 133 Received Heat Transfer 780 | . 780 Effects 9 | . 9 Shutdowns 2 | . 2 Interference 7 | . 7 Siege Activations . | . . Robots Corrupted . | . . Combat Hostiles . | . . Parts Fried . | . . Impact Corruptions . | . . Robots Melted . | . . Combat Hostiles . | . . Parts Melted 8 | . 8 Heat Transferred 2257 | 74 2183 Parts Sabotaged . | . . Parts Stolen . | . . Parts Stripped . | . . Power Chain Reactions . | . . Alert | -11 -10 ------- Run | Yrd Mat Peak Influence 158 | 5 158 Initial 3 | . 3 Average 60 | 1 66 Maximum Alert Level . | . . Low Security (%) 100 | 100 100 Level 1 . | . . Level 2 . | . . Level 3 . | . . Level 4 . | . . Level 5 . | . . High Security . | . . Max Security . | . . Squads Dispatched 3 | . 3 Investigation 2 | . 2 Extermination . | . . Reinforcement 1 | . 1 Assault . | . . Garrison . | . . Intercept . | . . Searches Triggered . | . . Construction Impeded . | . . Haulers Reinforced . | . . Active Scanning Responses . | . . Cargo Convoy Interrupts . | . . Stealth | -11 -10 --------- Run | Yrd Mat Distress Signals . | . . Communications Jammed . | . . Distress Signals . | . . Times Spotted 18 | . 18 Peak Tracking Total 3 | . 3 Tactical Retreats . | . . Traps | -11 -10 ------- Run | Yrd Mat Traps Triggered 1 | . 1 Indirectly . | . . Trap Hack Attempts . | . . Triggered . | . . Disarmed . | . . Reprogrammed . | . . Reused . | . . Traps Extracted . | . . Installed . | . . Triggered . | . . Machines | -11 -10 ---------- Run | Yrd Mat Machines Disabled . | . . Max in Single Turn . | . . Machines Repaired . | . . Machines Dismantled . | . . Machines Sabotaged . | . . Overloaded Fab Kills . | . . Hacking | -11 -10 --------- Run | Yrd Mat Machines Accessed 6 | . 6 Terminals 4 | . 4 Fabricators . | . . Repair Stations . | . . Recycling Units 2 | . 2 Scanalyzers . | . . Garrison Access . | . . Total Hacks 21 | . 21 Successful 10 | . 10 Failed 11 | . 11 Catastrophic 1 | . 1 Database Lockouts . | . . Manual 19 | . 19 Terminals 14 | . 14 Fabricators . | . . Repair Stations . | . . Recycling Units 7 | . 7 Scanalyzers . | . . Garrison Access . | . . Terminal Hacks 2 | . 2 Terminal Index 1 | . 1 Repair Station Index 1 | . 1 Fabricator Hacks . | . . Repair Station Hacks . | . . Recycling Unit Hacks 2 | . 2 Retrieve Components 2 | . 2 Scanalyzer . | . . Garrison Access Hacks . | . . Unauthorized Hacks 6 | . 6 Terminals 3 | . 3 Botnet 3 | . 3 Fabricators . | . . Repair Stations . | . . Recycling Units 3 | . 3 Reject 2 | . 2 Recyclers 1 | . 1 Scanalyzers . | . . Garrison Access . | . . Data Cores Recovered . | . . Used . | . . Hacking Detections 5 | . 5 Full Trace Events 1 | . 1 Feedback Events . | . . Feedback Blocked . | . . Robot Schematics Acquired . | . . Robots Built . | . . Authchips . | . . Time . | . . Total Robot Build Rating . | . . Part Schematics Acquired . | . . Parts Built . | . . Authchips . | . . Time . | . . Total Part Build Rating . | . . Parts Repaired . | . . Time . | . . Parts Recycled . | . . Recycled Matter . | . . Retrieved Matter . | . . Retrieved Components . | . . Parts Scanalyzed . | . . Part Schematics Acquired . | . . Parts Damaged . | . . Bothacking | -11 -10 ------------ Run | Yrd Mat Used RIF Installer . | . . Robots Hacked . | . . Non-combat . | . . Combat . | . . Robot Hacks Applied . | . . Relay Couplers Released . | . . Fabnet Peak Effective % . | . . Robots Rewired . | . . Allies Hacked . | . . Hacks Repelled . | . . Allies | -11 -10 -------- Run | Yrd Mat Total Allies . | . . Largest Group . | . . Highest-Rated Group . | . . Highest-Rated Ally . | . . Total Orders . | . . Ally Attacks . | . . Total Damage . | . . Kills . | . . Allies Corrupted . | . . Allies Melted . | . . Intel | -11 -10 ------- Run | Yrd Mat Robot Analysis Total . | . . Derelict Logs Recovered . | . . Drone Launches . | . . Drone Recoveries . | . . Exploration | -11 -10 ------------- Run | Yrd Mat Turns Passed 1042 | 92 950 Spaces Moved 476 | 49 427 Core 13 | 12 1 Treads 136 | . 136 Legs 327 | 37 290 Wheels . | . . Hover . | . . Flight . | . . Fastest Speed 50 | 50 120 Average Speed 130 | 103 133 Slowest Speed 250 | 120 250 Overloaded Moves . | . . Propulsion Burnouts . | . . Robots Hopped . | . . Cave-ins Triggered . | . . Exploration Rate (%) 36 | 5 68 Regions Visited 1 Branch Regions . Pre-discovered Areas . | . . Known Exits Taken . | . . Unknown Exits Taken 1 | 1 . Scrap Searched . | . . Spaces Dug . | . . Terrain Destroyed . | . . Melee . | . . Projectile . | . . AOE . | . . Terrain Rammed . | . . Walls Destroyed . | . . Machines Disabled . | . . Actions | -11 -10 --------- Run | Yrd Mat Total 779 | 80 699 Wait 144 | 9 135 Move 475 | 48 427 Hop . | . . Pick Up 29 | 11 18 Fast Attach 2 | 2 . Attach 8 | 4 4 Detach . | . . Swap 14 | . 14 Drop 14 | 1 13 Fire 64 | 5 59 Melee . | . . Ram 2 | . 2 Kick 27 | . 27 Crush . | . . Escape Stasis . | . . Rewire . | . . Trap . | . . Miscellaneous . | . . Route ------- -11/Scrapyard -10/Materials (discovered 4 exits: [*Mat x2] / [*Min x2]) History --------- Turn | Location | Event 16 | -11/Scrapyard | Discovered new exit (range 16) 93 | -11/Scrapyard | Entered Materials 217 | -10/Materials | Discovered new exit (range 3) 300 | -10/Materials | Build established: Mutant 314 | -10/Materials | Discovered new exit (range 16) 572 | -10/Materials | Discovered new exit (range 8) 678 | -10/Materials | Discovered new exit (range 14) 988 | -10/Materials | Core integrity fell below 50% 1029 | -10/Materials | Core integrity fell below 20% 1043 | -10/Materials | Destroyed by G-47 Trooper with Particle Gun Last Messages --------------- 01006_ Acquired Aluminum Leg. 01008_ Kicked G-34 Mercenary. 01009_ Kicked G-34 Mercenary out of the way. 01010_ Kicked G-34 Mercenary. 01017_ Particle Gun destroyed. 01018_ Kicked G-34 Mercenary. 01019_ Kicked G-34 Mercenary out of the way. 01020_ Kicked G-34 Mercenary. 01023_ Ion Engine destroyed. 01024_ Kicked G-34 Mercenary out of the way. 01025_ Kicked G-34 Mercenary. 01027_ Kicked G-34 Mercenary out of the way. 01027_ G-34 Mercenary knocked back. 01028_ Kicked G-34 Mercenary out of the way. 01031_ Acquired 2 matter. 01031_ Kicked G-34 Mercenary out of the way. 01031_ Aluminum Leg destroyed. 01036_ Kicked G-34 Mercenary. 01037_ Aluminum Leg destroyed. 01038_ Slammed into G-34 Mercenary. Map ----- +----------------------------------------------------+ | ?????????????????????###############?############# | | ???????????########??# "T" #?# # | | ???????????# ! #??# #?# [ # | | ???????????# #??# """ """ """ #?# # | | ???????????# """ #??# """ """ """ #?# < # | | ???????????# """ #??# """ """ """ #?# # | | ???????????# """ #??# #?# + | | ???????????# #??#######+#######?# # | | ???????????####+########## ############+###### | | ???????????# = % / | | ???????????#